[Event "Late-Titled-Tuesday-Blitz-April-30-2024"]
[Site "Chess.com"]
[Date "2024.04.30"]
[Round "4"]
[White "NowInChess"]
[Black "Casper"]
[Result "0-1"]
[WhiteElo "2261"]
[BlackElo "2494"]
[TimeControl "180+1"]
[EndTime "14:41:34 PDT"]
[Termination "Casper won on time"]

1. e4 {[%clk 0:03:00.9]} 1... d5 {[%clk 0:02:58.8]} 2. exd5 {[%clk 0:03:00.6]}
2... Nf6 {[%clk 0:02:59.5]} 3. Bb5+ {[%clk 0:02:59.8]} 3... Bd7 {[%clk
0:02:57.4]} 4. Be2 {[%clk 0:02:59.8]} 4... Nxd5 {[%clk 0:02:56.5]} 5. d4 {[%clk
0:03:00.2]} 5... g6 {[%clk 0:02:55.9]} 6. Nf3 {[%clk 0:02:59.3]} 6... Bg7 {[%clk
0:02:56.2]} 7. c4 {[%clk 0:02:52.5]} 7... Nf6 {[%clk 0:02:55.7]} 8. Nc3 {[%clk
0:02:51.5]} 8... O-O {[%clk 0:02:55.4]} 9. O-O {[%clk 0:02:47.4]} 9... Bg4
{[%clk 0:02:54.9]} 10. h3 {[%clk 0:02:46.5]} 10... Bxf3 {[%clk 0:02:54.7]} 11.
Bxf3 {[%clk 0:02:47.4]} 11... c6 {[%clk 0:02:55.3]} 12. Be3 {[%clk 0:02:34.8]}
12... Nbd7 {[%clk 0:02:55.5]} 13. Qb3 {[%clk 0:02:33.4]} 13... Qc8 {[%clk
0:02:21.4]} 14. Rfd1 {[%clk 0:02:28.1]} 14... Re8 {[%clk 0:02:18.7]} 15. Rac1
{[%clk 0:02:22.6]} 15... e5 {[%clk 0:02:18.7]} 16. d5 {[%clk 0:02:19.8]} 16...
e4 {[%clk 0:02:18.9]} 17. dxc6 {[%clk 0:02:08.1]} 17... Qxc6 {[%clk 0:02:09.2]}
18. Be2 {[%clk 0:01:59.6]} 18... Nc5 {[%clk 0:02:02.7]} 19. Qb5 {[%clk 0:01:52]}
19... Nfd7 {[%clk 0:01:52.9]} 20. Qxc6 {[%clk 0:01:36.3]} 20... bxc6 {[%clk
0:01:53.8]} 21. b4 {[%clk 0:01:36.4]} 21... Nd3 {[%clk 0:01:48.6]} 22. Bxd3
{[%clk 0:01:34.8]} 22... exd3 {[%clk 0:01:49.1]} 23. Rxd3 {[%clk 0:01:34.1]}
23... Ne5 {[%clk 0:01:49.1]} 24. Rd6 {[%clk 0:01:24.9]} 24... Nxc4 {[%clk
0:01:46.3]} 25. Rxc6 {[%clk 0:01:23.1]} 25... Nxe3 {[%clk 0:01:46]} 26. fxe3
{[%clk 0:01:23.8]} 26... Rxe3 {[%clk 0:01:44.4]} 27. Nd5 {[%clk 0:01:14.5]}
27... Re2 {[%clk 0:01:30.6]} 28. R1c2 {[%clk 0:01:10.8]} 28... Bd4+ {[%clk
0:01:24.2]} 29. Kf1 {[%clk 0:01:05.4]} 29... Re5 {[%clk 0:01:17.2]} 30. Rc8+
{[%clk 0:00:40.6]} 30... Rxc8 {[%clk 0:01:16.7]} 31. Rxc8+ {[%clk 0:00:41.5]}
31... Kg7 {[%clk 0:01:17.4]} 32. Nc7 {[%clk 0:00:24]} 32... Rf5+ {[%clk
0:01:07]} 33. Ke2 {[%clk 0:00:20.5]} 33... Rf2+ {[%clk 0:01:07.1]} 34. Kd3
{[%clk 0:00:20.7]} 34... Bb6 {[%clk 0:01:05]} 35. Nd5 {[%clk 0:00:18.2]} 35...
Rxa2 {[%clk 0:01:00.9]} 36. Nxb6 {[%clk 0:00:17.6]} 36... axb6 {[%clk
0:01:01.8]} 37. Rc6 {[%clk 0:00:16.5]} 37... Rxg2 {[%clk 0:00:58.7]} 38. Rxb6
{[%clk 0:00:16.3]} 38... Rg3+ {[%clk 0:00:59.6]} 39. Kc4 {[%clk 0:00:16.5]}
39... Rxh3 {[%clk 0:01:00.5]} 40. b5 {[%clk 0:00:15]} 40... Rh1 {[%clk
0:00:56.6]} 41. Rd6 {[%clk 0:00:14.1]} 41... Rc1+ {[%clk 0:00:51.7]} 42. Kd5
{[%clk 0:00:14]} 42... h5 {[%clk 0:00:50.7]} 43. b6 {[%clk 0:00:12.8]} 43... h4
{[%clk 0:00:44.7]} 44. b7 {[%clk 0:00:12.8]} 44... Rb1 {[%clk 0:00:45]} 45. Kc6
{[%clk 0:00:12.4]} 45... g5 {[%clk 0:00:42.1]} 46. Rd5 {[%clk 0:00:12]} 46...
Rxb7 {[%clk 0:00:39.1]} 47. Rxg5+ {[%clk 0:00:09.5]} 47... Kh6 {[%clk
0:00:31.6]} 48. Rg4 {[%clk 0:00:08.3]} 48... Re7 {[%clk 0:00:27.4]} 49. Rxh4+
{[%clk 0:00:06.8]} 49... Kg5 {[%clk 0:00:28.1]} 50. Rh7 {[%clk 0:00:06.4]} 50...
Kg6 {[%clk 0:00:26.8]} 51. Rh8 {[%clk 0:00:05.3]} 51... f5 {[%clk 0:00:26.2]}
52. Rf8 {[%clk 0:00:03.7]} 52... Re1 {[%clk 0:00:24.7]} 53. Kd5 {[%clk
0:00:03.3]} 53... Kg5 {[%clk 0:00:25.1]} 54. Kd4 {[%clk 0:00:03]} 54... Kg4
{[%clk 0:00:24.3]} 55. Rg8+ {[%clk 0:00:02.2]} 55... Kf3 {[%clk 0:00:23.9]} 56.
Kd3 {[%clk 0:00:02.2]} 56... Rd1+ {[%clk 0:00:22.4]} 57. Kc2 {[%clk 0:00:01.1]}
57... Rd7 {[%clk 0:00:23.3]} 58. Rh8 {[%clk 0:00:01.2]} 58... f4 {[%clk
0:00:23.5]} 59. Rh3+ {[%clk 0:00:00.8]} 59... Kg2 {[%clk 0:00:23.2]} 60. Rb3
{[%clk 0:00:01.7]} 60... f3 {[%clk 0:00:22.9]} 61. Kc1 {[%clk 0:00:02.3]} 61...
f2 {[%clk 0:00:22.9]} 62. Rb2 {[%clk 0:00:02.9]} 62... Kg1 {[%clk 0:00:22]} 0-1

[Event "Late-Titled-Tuesday-Blitz-April-30-2024"]
[Site "Chess.com"]
[Date "2024.04.30"]
[Round "4"]
[White "King_Deded4d5"]
[Black "ahkashefi2800"]
[Result "0-1"]
[WhiteElo "2455"]
[BlackElo "2592"]
[TimeControl "180+1"]
[EndTime "14:41:37 PDT"]
[Termination "ahkashefi2800 won by resignation"]

1. d4 {[%clk 0:02:57.5]} 1... d5 {[%clk 0:02:50.9]} 2. Nf3 {[%clk 0:02:55.6]}
2... Nf6 {[%clk 0:02:49.3]} 3. c3 {[%clk 0:02:56]} 3... Bf5 {[%clk 0:02:48.6]}
4. Qb3 {[%clk 0:02:55.4]} 4... Qc8 {[%clk 0:02:48.7]} 5. c4 {[%clk 0:02:55.5]}
5... c6 {[%clk 0:02:47.8]} 6. Nc3 {[%clk 0:02:55.7]} 6... e6 {[%clk 0:02:47.8]}
7. Bf4 {[%clk 0:02:56.4]} 7... Nbd7 {[%clk 0:02:46.1]} 8. cxd5 {[%clk 0:02:57]}
8... exd5 {[%clk 0:02:44.8]} 9. h3 {[%clk 0:02:57.4]} 9... Be7 {[%clk
0:02:43.1]} 10. Rc1 {[%clk 0:02:57.6]} 10... O-O {[%clk 0:02:42.3]} 11. g4
{[%clk 0:02:57.1]} 11... Bg6 {[%clk 0:02:39.8]} 12. Ne5 {[%clk 0:02:47.8]} 12...
a5 {[%clk 0:02:13.2]} 13. h4 {[%clk 0:02:40.4]} 13... Nxe5 {[%clk 0:02:11.5]}
14. dxe5 {[%clk 0:02:41.3]} 14... Nxg4 {[%clk 0:02:11.8]} 15. Nxd5 {[%clk
0:02:33.5]} 15... cxd5 {[%clk 0:02:06.4]} 16. Rxc8 {[%clk 0:02:32.1]} 16...
Raxc8 {[%clk 0:02:05.6]} 17. Bh3 {[%clk 0:02:29.6]} 17... Bb4+ {[%clk
0:01:59.7]} 18. Kf1 {[%clk 0:02:28]} 18... h5 {[%clk 0:01:56.2]} 19. f3 {[%clk
0:02:19]} 19... Bc2 {[%clk 0:01:55.2]} 20. Qxd5 {[%clk 0:02:14.5]} 20... Rfd8
{[%clk 0:01:52.2]} 21. Qxb7 {[%clk 0:02:10.5]} 21... Rb8 {[%clk 0:01:46.2]} 22.
Qa6 {[%clk 0:02:02.3]} 22... Rd1+ {[%clk 0:01:43.3]} 23. Kg2 {[%clk 0:02:01.7]}
23... Rxh1 {[%clk 0:01:42.8]} 24. Kxh1 {[%clk 0:02:02.6]} 24... Nf2+ {[%clk
0:01:42.7]} 25. Kg2 {[%clk 0:02:03.3]} 25... Nxh3 {[%clk 0:01:43.6]} 26. Kxh3
{[%clk 0:02:01.9]} 26... Bf5+ {[%clk 0:01:36.6]} 27. Kg3 {[%clk 0:02:00]} 27...
Be6 {[%clk 0:01:37.5]} 28. b3 {[%clk 0:01:53.2]} 28... Be1+ {[%clk 0:01:37.1]}
29. Kg2 {[%clk 0:01:52.7]} 29... Bxh4 {[%clk 0:01:34.4]} 30. Qxa5 {[%clk
0:01:50.9]} 30... Bd8 {[%clk 0:01:30.1]} 31. Qa7 {[%clk 0:01:44.1]} 31... Rc8
{[%clk 0:01:29.7]} 32. Qd4 {[%clk 0:01:32.1]} 32... h4 {[%clk 0:01:27.9]} 33.
Qd3 {[%clk 0:01:30.3]} 33... h3+ {[%clk 0:01:27.7]} 34. Kg3 {[%clk 0:01:30.2]}
34... Bb6 {[%clk 0:01:15.2]} 35. Be3 {[%clk 0:01:26.9]} 35... Ba5 {[%clk
0:01:08.9]} 36. a3 {[%clk 0:00:52]} 36... Rc3 {[%clk 0:00:37.4]} 37. Qd2 {[%clk
0:00:43.9]} 37... Bxb3 {[%clk 0:00:36.4]} 38. Kxh3 {[%clk 0:00:32.8]} 38... Be6+
{[%clk 0:00:36.1]} 39. Kg2 {[%clk 0:00:30.6]} 39... Rxa3 {[%clk 0:00:36.8]} 40.
Qd6 {[%clk 0:00:22.3]} 40... Rxe3 {[%clk 0:00:29]} 41. Qc5 {[%clk 0:00:17.8]}
41... Rxe2+ {[%clk 0:00:27.9]} 42. Kf1 {[%clk 0:00:18.5]} 42... Re1+ {[%clk
0:00:27.7]} 43. Kf2 {[%clk 0:00:18.1]} 43... Bd2 {[%clk 0:00:23.7]} 44. Qc2
{[%clk 0:00:17.6]} 44... Bb4 {[%clk 0:00:15.2]} 45. Qb2 {[%clk 0:00:09.6]} 45...
Ba5 {[%clk 0:00:12.5]} 46. Qb5 {[%clk 0:00:07.4]} 46... Ra1 {[%clk 0:00:10.6]}
47. f4 {[%clk 0:00:06.6]} 47... Ra2+ {[%clk 0:00:08.4]} 48. Kf3 {[%clk
0:00:05.5]} 48... Ra3+ {[%clk 0:00:04.6]} 49. Kf2 {[%clk 0:00:05]} 49... g6
{[%clk 0:00:04.8]} 50. Qb2 {[%clk 0:00:03.4]} 50... Ra2 {[%clk 0:00:04.9]} 51.
Qxa2 {[%clk 0:00:04.1]} 51... Bxa2 {[%clk 0:00:05.8]} 52. Kg3 {[%clk 0:00:05]}
0-1

[Event "Late-Titled-Tuesday-Blitz-April-30-2024"]
[Site "Chess.com"]
[Date "2024.04.30"]
[Round "4"]
[White "SVijayalakshmi"]
[Black "IlanSchnaider"]
[Result "0-1"]
[WhiteElo "2555"]
[BlackElo "2742"]
[TimeControl "180+1"]
[EndTime "14:41:42 PDT"]
[Termination "IlanSchnaider won by resignation"]

1. d4 {[%clk 0:03:00.9]} 1... Nf6 {[%clk 0:02:59]} 2. c4 {[%clk 0:03:01]} 2...
g6 {[%clk 0:02:59.1]} 3. Nc3 {[%clk 0:03:01.5]} 3... d5 {[%clk 0:02:58.7]} 4.
Bf4 {[%clk 0:03:00.3]} 4... Bg7 {[%clk 0:02:57.5]} 5. Nf3 {[%clk 0:03:00.4]}
5... dxc4 {[%clk 0:02:57.8]} 6. e3 {[%clk 0:02:59.5]} 6... c5 {[%clk 0:02:56.9]}
7. Bxc4 {[%clk 0:02:55.6]} 7... cxd4 {[%clk 0:02:56.7]} 8. exd4 {[%clk
0:02:54.7]} 8... O-O {[%clk 0:02:56.9]} 9. O-O {[%clk 0:02:54.7]} 9... Bg4
{[%clk 0:02:55.1]} 10. h3 {[%clk 0:02:48.4]} 10... Bxf3 {[%clk 0:02:49.1]} 11.
Qxf3 {[%clk 0:02:48.3]} 11... Qxd4 {[%clk 0:02:49.6]} 12. Bb3 {[%clk 0:02:46.9]}
12... Nc6 {[%clk 0:02:48.3]} 13. Rad1 {[%clk 0:02:42.8]} 13... Qb6 {[%clk
0:02:47.8]} 14. Be3 {[%clk 0:02:35.9]} 14... Qa6 {[%clk 0:02:44.1]} 15. Bc5
{[%clk 0:02:28.5]} 15... Rfe8 {[%clk 0:02:31.3]} 16. Rfe1 {[%clk 0:02:24.8]}
16... e6 {[%clk 0:02:25.8]} 17. Ne4 {[%clk 0:01:43.7]} 17... Nxe4 {[%clk
0:02:21.9]} 18. Rxe4 {[%clk 0:01:43.6]} 18... Na5 {[%clk 0:02:18.3]} 19. Rd7
{[%clk 0:01:38.5]} 19... f5 {[%clk 0:01:55.4]} 20. Bd4 {[%clk 0:01:12.7]} 20...
Bf8 {[%clk 0:01:25.7]} 21. Qf4 {[%clk 0:00:43.5]} 21... Nxb3 {[%clk 0:01:14.1]}
22. axb3 {[%clk 0:00:42.9]} 22... Qb5 {[%clk 0:00:31.1]} 23. Rc7 {[%clk
0:00:22.4]} 23... Rac8 {[%clk 0:00:22.6]} 24. Rxe6 {[%clk 0:00:14.5]} 24... Rxc7
{[%clk 0:00:16.3]} 25. Rxe8 {[%clk 0:00:14.4]} 25... Qxe8 {[%clk 0:00:10.6]} 26.
Qxc7 {[%clk 0:00:14]} 26... Qe1+ {[%clk 0:00:11.3]} 27. Kh2 {[%clk 0:00:13.6]}
27... Qe6 {[%clk 0:00:12.2]} 28. Qc4 {[%clk 0:00:11]} 28... Bd6+ {[%clk
0:00:04.7]} 29. g3 {[%clk 0:00:10.2]} 29... Qxc4 {[%clk 0:00:03.3]} 30. bxc4
{[%clk 0:00:10.6]} 30... b6 {[%clk 0:00:04]} 31. Kg2 {[%clk 0:00:10.8]} 31...
Kf7 {[%clk 0:00:04.6]} 32. Kf3 {[%clk 0:00:11.3]} 32... Ke6 {[%clk 0:00:05.4]}
33. Ke3 {[%clk 0:00:11.8]} 33... Bb4 {[%clk 0:00:06]} 34. Kd3 {[%clk 0:00:11.6]}
34... Kd6 {[%clk 0:00:05.3]} 35. Be3 {[%clk 0:00:11.3]} 35... Be1 {[%clk
0:00:04.8]} 36. Kd4 {[%clk 0:00:10.8]} 36... Bb4 {[%clk 0:00:03.9]} 37. Bf4+
{[%clk 0:00:10.7]} 37... Ke6 {[%clk 0:00:04.5]} 38. b3 {[%clk 0:00:09.9]} 38...
Bc5+ {[%clk 0:00:04.9]} 39. Kd3 {[%clk 0:00:10.1]} 39... Bxf2 {[%clk 0:00:05.8]}
40. b4 {[%clk 0:00:10.4]} 40... Be1 {[%clk 0:00:05.6]} 41. b5 {[%clk 0:00:10.4]}
41... Bf2 {[%clk 0:00:05.7]} 42. Ke2 {[%clk 0:00:09.9]} 42... Bc5 {[%clk
0:00:05.4]} 43. Bb8 {[%clk 0:00:09.9]} 43... Kd7 {[%clk 0:00:05.8]} 44. Kf3
{[%clk 0:00:09.4]} 44... Kc8 {[%clk 0:00:05.4]} 45. Be5 {[%clk 0:00:09.6]} 45...
Kb7 {[%clk 0:00:05.7]} 46. Kf4 {[%clk 0:00:09.8]} 46... a6 {[%clk 0:00:06.3]}
47. bxa6+ {[%clk 0:00:09.8]} 47... Kxa6 {[%clk 0:00:07.2]} 48. Kg5 {[%clk
0:00:10.3]} 48... Be3+ {[%clk 0:00:07.3]} 49. Kf6 {[%clk 0:00:10.5]} 49... Ka5
{[%clk 0:00:05.4]} 50. Kg7 {[%clk 0:00:10.8]} 50... g5 {[%clk 0:00:04.8]} 51.
Kxh7 {[%clk 0:00:09.9]} 51... f4 {[%clk 0:00:05.3]} 52. gxf4 {[%clk 0:00:10.1]}
52... gxf4 {[%clk 0:00:06.2]} 53. Kg6 {[%clk 0:00:08.8]} 53... f3 {[%clk
0:00:06.7]} 54. Bg3 {[%clk 0:00:08.5]} 54... f2 {[%clk 0:00:07]} 55. Bxf2 {[%clk
0:00:08.4]} 55... Bxf2 {[%clk 0:00:07.9]} 56. Kf5 {[%clk 0:00:08.9]} 56... Kb4
{[%clk 0:00:08.5]} 57. Ke4 {[%clk 0:00:08.4]} 57... Kxc4 {[%clk 0:00:09]} 58.
Kf3 {[%clk 0:00:09.1]} 58... Bh4 {[%clk 0:00:06.1]} 59. Ke2 {[%clk 0:00:10]}
59... Kc3 {[%clk 0:00:05.9]} 60. Kd1 {[%clk 0:00:09.8]} 60... Kb2 {[%clk
0:00:06.5]} 61. Kd2 {[%clk 0:00:10.1]} 61... b5 {[%clk 0:00:07.4]} 62. Kd3
{[%clk 0:00:10.1]} 62... b4 {[%clk 0:00:08.3]} 0-1

[Event "Late-Titled-Tuesday-Blitz-April-30-2024"]
[Site "Chess.com"]
[Date "2024.04.30"]
[Round "4"]
[White "AlexSuv"]
[Black "carokannlover213"]
[Result "1-0"]
[WhiteElo "2579"]
[BlackElo "2768"]
[TimeControl "180+1"]
[EndTime "14:41:44 PDT"]
[Termination "AlexSuv won by checkmate"]

1. e4 {[%clk 0:03:00.9]} 1... e6 {[%clk 0:03:00.7]} 2. Qe2 {[%clk 0:02:56.8]}
2... d5 {[%clk 0:03:01.6]} 3. d3 {[%clk 0:02:51]} 3... Nf6 {[%clk 0:02:58]} 4.
Nf3 {[%clk 0:02:42.5]} 4... Nc6 {[%clk 0:02:54.5]} 5. g3 {[%clk 0:02:41.3]} 5...
dxe4 {[%clk 0:02:52.8]} 6. dxe4 {[%clk 0:02:40.5]} 6... e5 {[%clk 0:02:53.3]} 7.
Bg2 {[%clk 0:02:41]} 7... Bg4 {[%clk 0:02:52.2]} 8. c3 {[%clk 0:02:39.1]} 8...
Bc5 {[%clk 0:02:52.3]} 9. O-O {[%clk 0:02:39.2]} 9... O-O {[%clk 0:02:52.5]} 10.
h3 {[%clk 0:02:38.6]} 10... Bd7 {[%clk 0:02:48]} 11. b4 {[%clk 0:02:38.1]} 11...
Bd6 {[%clk 0:02:46.5]} 12. Nbd2 {[%clk 0:02:34.6]} 12... a5 {[%clk 0:02:43.4]}
13. b5 {[%clk 0:02:34.5]} 13... Na7 {[%clk 0:02:43]} 14. a4 {[%clk 0:02:33.3]}
14... Be6 {[%clk 0:02:31.3]} 15. Nc4 {[%clk 0:02:32.7]} 15... Bxc4 {[%clk
0:02:29.2]} 16. Qxc4 {[%clk 0:02:33.6]} 16... Nc8 {[%clk 0:02:27.5]} 17. Rd1
{[%clk 0:02:30.5]} 17... Qe7 {[%clk 0:02:27]} 18. Nh4 {[%clk 0:02:26.8]} 18...
g6 {[%clk 0:02:21.6]} 19. Qe2 {[%clk 0:01:58.9]} 19... Nd7 {[%clk 0:02:19.6]}
20. Nf3 {[%clk 0:01:57.3]} 20... Ncb6 {[%clk 0:02:17.5]} 21. h4 {[%clk
0:01:57.3]} 21... f6 {[%clk 0:02:13.1]} 22. Bh3 {[%clk 0:01:57]} 22... Nc5
{[%clk 0:02:12.5]} 23. Nh2 {[%clk 0:01:49.8]} 23... h5 {[%clk 0:02:04.6]} 24.
Nf1 {[%clk 0:01:45.2]} 24... Qf7 {[%clk 0:01:55.4]} 25. Qc2 {[%clk 0:01:40.6]}
25... Qb3 {[%clk 0:01:52.4]} 26. Qxb3+ {[%clk 0:01:38.6]} 26... Nxb3 {[%clk
0:01:53.3]} 27. Be6+ {[%clk 0:01:38.9]} 27... Kg7 {[%clk 0:01:53.9]} 28. Bxb3
{[%clk 0:01:39.7]} 28... f5 {[%clk 0:01:51.3]} 29. Be3 {[%clk 0:01:38]} 29...
Nd7 {[%clk 0:01:47.5]} 30. Bd5 {[%clk 0:01:38]} 30... Rab8 {[%clk 0:01:46.3]}
31. exf5 {[%clk 0:01:38.3]} 31... gxf5 {[%clk 0:01:46.3]} 32. Bg5 {[%clk
0:01:34.7]} 32... f4 {[%clk 0:01:42.2]} 33. gxf4 {[%clk 0:01:34.6]} 33... exf4
{[%clk 0:01:43.1]} 34. Nd2 {[%clk 0:01:34.3]} 34... Nf6 {[%clk 0:01:37.7]} 35.
Nf3 {[%clk 0:01:30.3]} 35... Nh7 {[%clk 0:01:32.1]} 36. Re1 {[%clk 0:01:28]}
36... Rfe8 {[%clk 0:01:27.7]} 37. Re4 {[%clk 0:01:27.7]} 37... Rxe4 {[%clk
0:01:27.4]} 38. Bxe4 {[%clk 0:01:28.6]} 38... Nf6 {[%clk 0:01:26]} 39. Bxf6+
{[%clk 0:01:18.4]} 39... Kxf6 {[%clk 0:01:26.9]} 40. Bd5 {[%clk 0:01:18.4]}
40... b6 {[%clk 0:01:24.3]} 41. Re1 {[%clk 0:01:18.6]} 41... Rd8 {[%clk
0:01:21.2]} 42. Re6+ {[%clk 0:01:18.1]} 42... Kf5 {[%clk 0:01:19.6]} 43. c4
{[%clk 0:01:17.9]} 43... Bc5 {[%clk 0:01:13.1]} 44. Rh6 {[%clk 0:01:17.4]} 44...
Kg4 {[%clk 0:01:03.5]} 45. Rg6+ {[%clk 0:01:16.9]} 45... Kf5 {[%clk 0:01:00.9]}
46. Rg5+ {[%clk 0:01:17.2]} 46... Kf6 {[%clk 0:01:01.8]} 47. Rxh5 {[%clk
0:01:18.1]} 47... Re8 {[%clk 0:01:01.8]} 48. Rh6+ {[%clk 0:01:13.8]} 48... Kf5
{[%clk 0:00:59.4]} 49. Rh5+ {[%clk 0:01:07.3]} 49... Kf6 {[%clk 0:00:57.6]} 50.
Ng5 {[%clk 0:01:00.7]} 50... Re1+ {[%clk 0:00:28.9]} 51. Kg2 {[%clk 0:00:59.6]}
51... Bb4 {[%clk 0:00:11.2]} 52. Ne4+ {[%clk 0:00:58.3]} 52... Kg7 {[%clk
0:00:09.7]} 53. Rg5+ {[%clk 0:00:57.6]} 53... Kf8 {[%clk 0:00:09.9]} 54. h5
{[%clk 0:00:56.9]} 54... Ra1 {[%clk 0:00:07.8]} 55. h6 {[%clk 0:00:57]} 55...
f3+ {[%clk 0:00:08.1]} 56. Kh2 {[%clk 0:00:51.2]} 56... Ba3 {[%clk 0:00:06.9]}
57. h7 {[%clk 0:00:51.4]} 57... Bb2 {[%clk 0:00:07.8]} 58. Rg8+ {[%clk
0:00:51.9]} 58... Ke7 {[%clk 0:00:07.4]} 59. h8=Q {[%clk 0:00:52]} 59... Bxh8
{[%clk 0:00:08]} 60. Rxh8 {[%clk 0:00:52.9]} 60... Kd7 {[%clk 0:00:08.5]} 61.
Rh7+ {[%clk 0:00:53.1]} 61... Kd8 {[%clk 0:00:09]} 62. Nf6 {[%clk 0:00:43.5]}
62... Rf1 {[%clk 0:00:07.3]} 63. Rd7+ {[%clk 0:00:42.7]} 63... Kc8 {[%clk
0:00:07.1]} 64. Kg3 {[%clk 0:00:43]} 64... Ra1 {[%clk 0:00:06.1]} 65. Bc6 {[%clk
0:00:42]} 65... Re1 {[%clk 0:00:02.8]} 66. Rf7 {[%clk 0:00:40.9]} 66... Kd8
{[%clk 0:00:03]} 67. Rf8+ {[%clk 0:00:40.3]} 67... Ke7 {[%clk 0:00:03]} 68. Re8+
{[%clk 0:00:41.2]} 68... Kxf6 {[%clk 0:00:03.7]} 69. Rxe1 {[%clk 0:00:41.6]}
69... Kf5 {[%clk 0:00:03.2]} 70. Re3 {[%clk 0:00:42.5]} 70... Kf6 {[%clk
0:00:04.1]} 71. Rxf3+ {[%clk 0:00:43.4]} 71... Ke6 {[%clk 0:00:04.7]} 72. Re3+
{[%clk 0:00:44.3]} 72... Kd6 {[%clk 0:00:05.6]} 73. f4 {[%clk 0:00:45.1]} 73...
Kc5 {[%clk 0:00:06.5]} 74. f5 {[%clk 0:00:45.7]} 74... Kb4 {[%clk 0:00:07.4]}
75. f6 {[%clk 0:00:46.6]} 75... Kc5 {[%clk 0:00:08.3]} 76. f7 {[%clk 0:00:47.1]}
76... Kb4 {[%clk 0:00:08.7]} 77. f8=Q+ {[%clk 0:00:47.4]} 77... Kxc4 {[%clk
0:00:09]} 78. Qf4+ {[%clk 0:00:47.7]} 78... Kc5 {[%clk 0:00:03.5]} 79. Rc3#
{[%clk 0:00:48.6]} 1-0

[Event "Late-Titled-Tuesday-Blitz-April-30-2024"]
[Site "Chess.com"]
[Date "2024.04.30"]
[Round "4"]
[White "english_player_89"]
[Black "ArtemDyachuk"]
[Result "1-0"]
[WhiteElo "2542"]
[BlackElo "2689"]
[TimeControl "180+1"]
[EndTime "14:41:45 PDT"]
[Termination "english_player_89 won on time"]

1. e4 {[%clk 0:03:00.9]} 1... e5 {[%clk 0:02:59.1]} 2. Nf3 {[%clk 0:03:00.9]}
2... Nc6 {[%clk 0:02:59.4]} 3. Bc4 {[%clk 0:03:01.5]} 3... Nf6 {[%clk
0:02:54.8]} 4. d3 {[%clk 0:03:01.5]} 4... Bc5 {[%clk 0:02:53.9]} 5. Nbd2 {[%clk
0:02:59.4]} 5... d6 {[%clk 0:02:53.5]} 6. c3 {[%clk 0:02:59.4]} 6... a6 {[%clk
0:02:53.9]} 7. Bb3 {[%clk 0:02:59.4]} 7... Ba7 {[%clk 0:02:52.2]} 8. h3 {[%clk
0:02:59.1]} 8... h6 {[%clk 0:02:51.7]} 9. Qe2 {[%clk 0:02:58.6]} 9... Qe7 {[%clk
0:02:45.5]} 10. Nf1 {[%clk 0:02:55.7]} 10... Be6 {[%clk 0:02:38.2]} 11. Ng3
{[%clk 0:02:55.3]} 11... O-O {[%clk 0:02:25.4]} 12. Nh4 {[%clk 0:02:47.8]} 12...
Kh7 {[%clk 0:02:18.1]} 13. Ngf5 {[%clk 0:02:46.6]} 13... Qd7 {[%clk 0:02:17.7]}
14. g4 {[%clk 0:02:46.6]} 14... Ng8 {[%clk 0:02:01.2]} 15. g5 {[%clk 0:02:45.4]}
15... g6 {[%clk 0:02:00.2]} 16. Nxh6 {[%clk 0:02:29.5]} 16... Nxh6 {[%clk
0:01:59]} 17. gxh6 {[%clk 0:02:30.4]} 17... Rad8 {[%clk 0:01:12.1]} 18. Nf3
{[%clk 0:02:09.4]} 18... f6 {[%clk 0:01:10.8]} 19. Bd2 {[%clk 0:01:52.2]} 19...
d5 {[%clk 0:01:09.3]} 20. O-O-O {[%clk 0:01:40.8]} 20... dxe4 {[%clk 0:00:51.7]}
21. dxe4 {[%clk 0:01:39.6]} 21... Bxb3 {[%clk 0:00:49.4]} 22. axb3 {[%clk
0:01:40.5]} 22... Na5 {[%clk 0:00:47.8]} 23. Kc2 {[%clk 0:01:21.3]} 23... Qe6
{[%clk 0:00:42.1]} 24. c4 {[%clk 0:01:20.5]} 24... Nc6 {[%clk 0:00:40.3]} 25.
Bc3 {[%clk 0:01:17.9]} 25... Bd4 {[%clk 0:00:37.2]} 26. h4 {[%clk 0:01:06.8]}
26... a5 {[%clk 0:00:33.1]} 27. h5 {[%clk 0:01:02]} 27... g5 {[%clk 0:00:31.5]}
28. Nh2 {[%clk 0:00:42.2]} 28... a4 {[%clk 0:00:21]} 29. bxa4 {[%clk 0:00:41.5]}
29... Bxc3 {[%clk 0:00:21]} 30. bxc3 {[%clk 0:00:39.4]} 30... Na5 {[%clk
0:00:21.1]} 31. Rd5 {[%clk 0:00:35.9]} 31... Rxd5 {[%clk 0:00:16.5]} 32. cxd5
{[%clk 0:00:28.7]} 32... Qd7 {[%clk 0:00:16.5]} 33. Qb5 {[%clk 0:00:27.7]} 33...
Qxb5 {[%clk 0:00:08.2]} 34. axb5 {[%clk 0:00:27.9]} 34... Nc4 {[%clk 0:00:07.1]}
35. Ng4 {[%clk 0:00:26.2]} 35... Nd6 {[%clk 0:00:07.1]} 36. f3 {[%clk
0:00:24.6]} 36... Nxb5 {[%clk 0:00:06.1]} 37. Rb1 {[%clk 0:00:24.4]} 37... Nd6
{[%clk 0:00:06.2]} 38. Kd3 {[%clk 0:00:18.6]} 38... b6 {[%clk 0:00:06.2]} 39.
Ra1 {[%clk 0:00:18.4]} 39... f5 {[%clk 0:00:05.3]} 40. Nxe5 {[%clk 0:00:16.9]}
40... Re8 {[%clk 0:00:03.8]} 41. Nf7 {[%clk 0:00:11.3]} 41... fxe4+ {[%clk
0:00:02.9]} 42. fxe4 {[%clk 0:00:12.2]} 42... Nxe4 {[%clk 0:00:03.4]} 43. Ra7
{[%clk 0:00:10.4]} 43... Re7 {[%clk 0:00:03.3]} 44. d6 {[%clk 0:00:10]} 44...
Rxf7 {[%clk 0:00:01.5]} 45. Kxe4 {[%clk 0:00:10.3]} 45... Kxh6 {[%clk
0:00:00.7]} 46. dxc7 {[%clk 0:00:10.2]} 46... Re7+ {[%clk 0:00:00.7]} 47. Kd5
{[%clk 0:00:10]} 47... Re8 {[%clk 0:00:01.6]} 48. Kd6 {[%clk 0:00:10.1]} 48...
g4 {[%clk 0:00:02]} 49. Kd7 {[%clk 0:00:10.1]} 49... Rg8 {[%clk 0:00:02.4]} 50.
c8=Q {[%clk 0:00:10.1]} 50... Rxc8 {[%clk 0:00:02.1]} 51. Kxc8 {[%clk
0:00:10.2]} 51... g3 {[%clk 0:00:02.4]} 52. Ra1 {[%clk 0:00:10.3]} 52... Kxh5
{[%clk 0:00:02.5]} 53. Kb7 {[%clk 0:00:10.6]} 53... b5 {[%clk 0:00:01.9]} 54.
Kb6 {[%clk 0:00:10.9]} 54... Kg4 {[%clk 0:00:02.8]} 55. Kxb5 {[%clk 0:00:11.4]}
55... Kf3 {[%clk 0:00:03.5]} 56. c4 {[%clk 0:00:12.1]} 56... Ke4 {[%clk
0:00:03.1]} 57. c5 {[%clk 0:00:12.6]} 57... g2 {[%clk 0:00:04]} 58. Rg1 {[%clk
0:00:12.4]} 58... Kf3 {[%clk 0:00:03]} 59. c6 {[%clk 0:00:12.9]} 59... Kf2
{[%clk 0:00:02.7]} 60. Rxg2+ {[%clk 0:00:13.5]} 60... Kxg2 {[%clk 0:00:03.3]}
61. c7 {[%clk 0:00:14.4]} 1-0